[Event "83rd ESP-ch Women-ch 2018"]
[Site "Linares"]
[Date "2018.08.28"]
[Round "9"]
[White "Ortin Blanco, Ainhoa"]
[Black "Gil Quilez, Sonia"]
[Result "1-0"]
[ECO "D05"]
[WhiteElo "1951"]
[BlackElo "2066"]
[Annotator "NA RC"]
[PlyCount "173"]
[EventDate "2018.08.09"]
[EventType "tourn"]
[EventCountry "ESP"]
[SourceTitle "playchess.com"]
[Source "ChessBase"]
[SourceQuality "1"]
[TimeControl "40/5400+30:1800+30"]

{[%evp 13,172,6,32767,20,32767,32767,32767,19,19,22,22,32767,32767,15,32767,8,7,18,15,10,18,0,32767,18,10,8,18,32767,0,0,0,49,44,47,34,0,32767,16,32767,32767,32767,0,26,45,32767,32767,32767,32767,32767,32767,32767,32767,32767,110,32767,32767,32767,32767,32767,32767,32767,32767,32767,32767,32767,32767,32767,32767,32767,32767,32767,32767,32767,32767,22,0,39,0,32767,32767,32767,46,139,0,0,32767,32767,32767,32767,32767,32767,32767,32767,32767,32767,32767,32767,32767,0,0,0,0,0,0,0,9,58,19,66,63,61,45,117,0,0,0,0,0,101,0,7,0,10,0,0,0,12,13,13,14,12,0,7,0,20,14,1092,2126,1357,1566,2725,6520,12835,5531,29969,11420,5314,29974,29974,12836,4134,6456,29979,29976,29974,29978,12845,29979,29977,29980,29981]} 1. d4 {[%emt 0:00:00]} d5 {[%emt 0:00:00]} 2. Nf3 {[%emt 0:00:19]} Nf6 {[%emt 0:00:29]} 3. e3 {[%emt 0:00:14]} e6 {[%emt 0:00:46]} 4. Bd3 {[%emt 0:00:20]} c5 {[%emt 0:01:16]} 5. b3 {[%emt 0:00:44]} cxd4 {[%emt 0:01:37]} 6. exd4 {[%emt 0:00:35]} Nc6 {[%emt 0:01:52]} 7. O-O {[%emt 0:04:36]} h6 {[%emt 0:01:39] D05: Damenbauernspiele (Colle-Aufbau)} (7... Be7 8. Bb2 O-O 9. Nbd2 b6 10. a3 Bb7 11. Qe2 Rc8 12. Rfe1 Rc7 13. Rac1 Qa8 14. Ng5 h6 15. Ngf3 Rd8 16. b4 Bf8 17. Ne5 a5 18. c3 Nxe5 19. dxe5 Ne4 {1-0 (82) Markus,R (2649)-Jovanovic,Z (2526) Hungary 2016}) 8. a3 {[%emt 0:00:49]} Bd6 {[%emt 0:01:20]} 9. Bb2 {[%emt 0:00:29]} O-O {[%emt 0:00:54]} 10. Re1 {[%emt 0:00:48]} b6 $146 {[%emt 0:03:28]} ({Vorgänger:} 10... Ne8 11. c4 Bc7 12. Nc3 a6 13. Bc2 f5 14. cxd5 exd5 15. b4 Nf6 {1-0 (34) Corkett,A (2314)-Morris,C (2225) West Bromwich 2003}) 11. Nbd2 {[%emt 0:01:17]} Bb7 {[%emt 0:01:04]} 12. h3 {[%emt 0:01:32]} a5 {[%emt 0:01:51]} 13. Ne5 {[%emt 0:00:40]} Ne7 {[%emt 0:02:59]} 14. Qe2 {[%emt 0:00:48]} Rc8 {[%emt 0:03:42]} 15. Rac1 {[%emt 0:01:31]} Nf5 {[%emt 0:06:49]} 16. Qf3 {[%emt 0:13:23]} Nh4 {[%emt 0:05:14]} 17. Qe2 {[%emt 0:02:11]} Bb8 {[%emt 0:04:19]} 18. c3 {[%emt 0:02:04]} Nf5 {[%emt 0:05:25]} 19. Bb1 {[%emt 0:05:40]} Nd7 {[%emt 0:06:25]} 20. b4 {[%emt 0:05:46]} Nd6 {[%emt 0:06:34]} 21. b5 {[%emt 0:01:26]} Nxe5 {[%emt 0:01:08]} 22. dxe5 {[%emt 0:00:07]} Nc4 {[%emt 0:00:12]} 23. Nxc4 {[%emt 0:00:27]} dxc4 {[%emt 0:00:24]} 24. a4 {[%emt 0:00:32]} Qg5 {[%emt 0:06:32]} 25. Qg4 {[%emt 0:09:41]} Qxg4 {[%emt 0:02:19]} 26. hxg4 {[%emt 0:00:05]} Rfd8 {[%emt 0:00:08]} 27. Ba3 {[%emt 0:02:31]} Rd2 {[%emt 0:00:30]} 28. Re3 {[%emt 0:03:52]} Rcd8 {[%emt 0:01:44]} 29. Rce1 {[%emt 0:00:35]} R8d7 {[%emt 0:02:30]} 30. Bc1 {[%emt 0:02:46]} Rd1 {[%emt 0:01:11]} 31. Bc2 {[%emt 0:00:16]} Rxe1+ {[%emt 0:01:50]} 32. Rxe1 {[%emt 0:00:04]} Bc7 {[%emt 0:00:46]} 33. f4 {[%emt 0:03:38]} Bd8 {[%emt 0:02:41]} 34. Be3 {[%emt 0:01:14]} Kf8 {[%emt 0:03:09]} 35. Kf2 {[%emt 0:01:21]} Ke8 {[%emt 0:01:14]} 36. Rd1 {[%emt 0:04:22]} Rxd1 {[%emt 0:02:33]} 37. Bxd1 {[%emt 0:00:04]} Be4 {[%emt 0:00:42]} 38. Bd4 {[%emt 0:04:19]} Kd7 {[%emt 0:01:11]} 39. g3 {[%emt 0:00:10]} Kc7 {[%emt 0:00:47]} 40. Ke3 {[%emt 0:00:07]} Bb1 {[%emt 0:01:14]} 41. Be2 {[%emt 0:32:25]} Ba2 {[%emt 0:33:23]} 42. Kd2 {[%emt 0:01:06]} Be7 {[%emt 0:00:43]} 43. Bd1 {[%emt 0:00:17]} Ba3 {[%emt 0:01:51]} 44. Bc2 {[%emt 0:01:44]} Be7 {[%emt 0:01:10]} 45. f5 {[%emt 0:04:38]} (45. Bh7 $14) 45... Ba3 {[%emt 0:03:42]} 46. Be3 {[%emt 0:02:19]} Bf8 {[%emt 0:01:29] [#]} 47. Bf4 {[%emt 0:01:09]} (47. f6 $1 $16) 47... Kd7 {[%emt 0:01:18] [#]} (47... Bb3 $14) 48. Ke3 $2 {[%emt 0:02:18]} ({Der einzige Zug:} 48. f6 $1 $18) 48... Ba3 {[%emt 0:01:20]} 49. Ke2 {[%emt 0:01:51]} Bf8 {[%emt 0:00:29]} 50. Bc1 {[%emt 0:00:18]} Kc7 {[%emt 0:00:29]} 51. Kf3 {[%emt 0:01:15]} Bc5 {[%emt 0:00:49]} 52. Kf4 {[%emt 0:01:38]} Be7 {[%emt 0:00:25]} 53. Ke4 {[%emt 0:01:17]} Bc5 {[%emt 0:00:41]} 54. Bf4 {[%emt 0:00:43]} Bf8 {[%emt 0:00:58]} 55. g5 {[%emt 0:01:20]} hxg5 {[%emt 0:01:37]} 56. Bxg5 {[%emt 0:00:26]} Ba3 {[%emt 0:00:35]} 57. g4 {[%emt 0:01:17]} Bb2 {[%emt 0:02:56]} 58. Bd2 {[%emt 0:00:34]} Ba3 {[%emt 0:01:11]} 59. Ke3 {[%emt 0:01:56]} Be7 {[%emt 0:00:46]} ({Black should try} 59... Bc5+ $11 60. Ke2 Bb3) 60. Ke2 {[%emt 0:00:05]} Bh4 {[%emt 0:01:12]} 61. Bf4 {[%emt 0:01:22]} Kd7 {[%emt 0:01:35]} 62. Kd2 {[%emt 0:00:40]} Be7 {[%emt 0:00:30]} (62... exf5 $1 $14 63. gxf5 (63. Bxf5+ Kd8 $11) 63... Be7) 63. g5 {[%emt 0:00:29]} exf5 {[%emt 0:01:04]} 64. Bxf5+ {[%emt 0:00:04]} Ke8 {[%emt 0:00:03]} 65. Be3 {[%emt 0:00:42]} Bd8 {[%emt 0:00:19] [#]} (65... Bb3 $11 {bleibt in der Remisbreite.}) 66. g6 {[%emt 0:03:21]} (66. Bc2 $1 $16) 66... fxg6 {[%emt 0:01:05]} 67. Bxg6+ {[%emt 0:00:08]} Kd7 $1 {[%emt 0:00:04]} 68. Bf5+ {[%emt 0:00:28]} Kc7 $1 {[%emt 0:00:20]} 69. Bf4 {[%emt 0:00:51]} Be7 {[%emt 0:00:26]} 70. e6+ {[%emt 0:00:23]} Kd8 {[%emt 0:00:10]} 71. Be3 {[%emt 0:00:14]} Kc7 {[%emt 0:00:05]} 72. Bd4 {[%emt 0:00:08]} Bb3 {[%emt 0:01:00]} 73. Bc2 {[%emt 0:02:00]} Bxc2 {[%emt 0:01:36]} 74. Kxc2 {[%emt 0:00:04]} Bd8 $2 {[%emt 0:00:20]} (74... Bf6 $11 75. e7 Bxe7) 75. Be5+ {[%emt 0:00:35]} Kc8 {[%emt 0:00:07]} 76. Bxg7 {[%emt 0:00:10]} Be7 {[%emt 0:00:47]} 77. Kd2 {[%emt 0:01:06]} Kd8 {[%emt 0:00:27]} 78. Bd4 {[%emt 0:00:26]} Kc7 {[%emt 0:00:16]} 79. Ke2 {[%emt 0:00:18]} Bd8 {[%emt 0:01:03]} 80. Be5+ {[%emt 0:00:09]} Kc8 {[%emt 0:00:03]} 81. Kf3 {[%emt 0:00:06]} Be7 {[%emt 0:00:53]} 82. Ke4 {[%emt 0:00:05]} Kd8 {[%emt 0:00:21]} 83. Kd5 {[%emt 0:00:06]} Ke8 {[%emt 0:00:09]} 84. Kxc4 {[%emt 0:00:05]} Bc5 {[%emt 0:00:45]} 85. Bf6 {[%emt 0:00:10]} Bd6 {[%emt 0:00:57]} 86. Kd5 {[%emt 0:00:07]} Bg3 {[%emt 0:00:26]} 87. Ke4 1-0

[Event "83rd ESP-ch Women-ch 2018"]
[Site "Linares"]
[Date "2018.08.28"]
[Round "9"]
[White "Serrano Garcia, Luis"]
[Black "Samuel Lares, Jairo"]
[Result "0-1"]
[ECO "B24"]
[WhiteElo "1915"]
[BlackElo "2006"]
[Annotator "NA RC"]
[PlyCount "56"]
[EventDate "2018.08.09"]
[EventType "tourn"]
[EventCountry "ESP"]
[SourceTitle "playchess.com"]
[Source "ChessBase"]
[SourceQuality "1"]
[TimeControl "40/5400+30:1800+30"]

{[%evp 15,55,30,39,31,38,39,91,60,74,32767,197,191,217,32767,172,150,222,254,242,252,266,143,32767,32767,32767,32767,32767,32767,32767,32767,32767,32767,32767,32767,32767,32767,32767,32767,32767,32767,-512,-735]} 1. e4 {[%emt 0:00:00]} c5 {[%emt 0:03:09]} 2. Nc3 {[%emt 0:00:37]} Nc6 {[%emt 0:00:07]} 3. Bb5 {[%emt 0:00:49]} Nd4 {[%emt 0:00:03]} 4. Bc4 {[%emt 0:00:10]} g6 {[%emt 0:00:07]} 5. Nf3 {[%emt 0:01:15]} Bg7 {[%emt 0:00:05]} 6. Nxd4 {[%emt 0:00:23]} cxd4 {[%emt 0:00:03]} 7. Qf3 {[%emt 0:01:00]} Nh6 {[%emt 0:02:44]} 8. d3 {[%emt 0:02:52]} O-O {[%emt 0:03:25]} 9. Ne2 {[%emt 0:03:08]} Ng4 {[%emt 0:03:03] B23: Closed Sicilian: Lines without g3} 10. Bb3 {[%emt 0:17:11]} ({Much weaker is} 10. Qxg4 d5 $15) 10... Ne5 {[%emt 0:02:01]} (10... d6 $11 11. Qg3 Qa5+ 12. Bd2 Qe5 13. Nf4 Nf6 14. h4 Nh5 15. Nxh5 Qxh5 16. Bg5 Be5 17. f4 {1-0 (30) Martinez Duany,L (2509)-Kurayan,R (2374) Rochefort 2018}) 11. Qg3 {[%emt 0:00:34]} Nc6 {[%emt 0:05:15] LiveBook: 10 Games} 12. h4 {[%emt 0:02:31]} e6 {[%emt 0:07:01] [#]} (12... Na5 $16 {keeps fighting.}) 13. h5 $1 {[%emt 0:05:41]} Qe7 {[%emt 0:05:30]} 14. hxg6 $146 {[%emt 0:01:43]} ({Predecessor:} 14. Bf4 Re8 15. Qh2 g5 16. h6 Bf6 17. Qg3 Kh8 18. Bd6 Qd8 19. Bc7 Qe7 20. e5 Qb4+ 21. c3 {1-0 (21) Daulyte,D (2378)-Moskow,E (2127) Auckland 2016}) 14... fxg6 {[%emt 0:01:23]} 15. Bg5 {[%emt 0:06:10]} Qf7 {[%emt 0:13:55]} 16. Qh4 {[%emt 0:05:53]} Bh8 {[%emt 0:10:09]} 17. Rh3 {[%emt 0:10:30]} Na5 {[%emt 0:12:28]} 18. Bh6 {[%emt 0:16:19]} ({Better is} 18. f4 $18) 18... Bf6 {[%emt 0:06:09]} 19. Qf4 {[%emt 0:06:45]} Nxb3 {[%emt 0:02:24]} 20. axb3 {[%emt 0:00:23]} e5 {[%emt 0:00:40]} 21. Qh2 {[%emt 0:02:47]} d5 {[%emt 0:07:50]} 22. Bxf8 {[%emt 0:03:53]} Bxh3 {[%emt 0:00:12]} 23. Bh6 {[%emt 0:03:06]} Be6 {[%emt 0:01:41]} 24. f3 {[%emt 0:02:06]} a6 {[%emt 0:01:29]} 25. O-O-O {[%emt 0:02:21]} Rc8 {[%emt 0:04:43]} 26. g4 {[%emt 0:00:52]} dxe4 {[%emt 0:01:06]} 27. fxe4 {[%emt 0:01:51]} Bxb3 {[%emt 0:00:34]} 28. Rd2 $19 {[%emt 0:01:19]} Bg5 {[%emt 0:02:21]} 0-1

[Event "83rd ESP-ch Women-ch 2018"]
[Site "Linares"]
[Date "2018.08.28"]
[Round "9"]
[White "Gonzalez del Campo, Diego"]
[Black "Sobrino Forte, Alvaro"]
[Result "0-1"]
[ECO "A48"]
[WhiteElo "1893"]
[BlackElo "1984"]
[Annotator "NA RC"]
[PlyCount "90"]
[EventDate "2018.08.09"]
[EventType "tourn"]
[EventCountry "ESP"]
[SourceTitle "playchess.com"]
[Source "ChessBase"]
[SourceQuality "1"]
[TimeControl "40/5400+30:1800+30"]

1. d4 {[%emt 0:00:06]} Nf6 2. Nf3 g6 {[%emt 0:05:38]} 3. Bf4 {[%emt 0:00:56]} d6 {[%emt 0:00:05]} 4. e3 {[%emt 0:00:56]} Bg7 {[%emt 0:00:02]} 5. h3 {[%emt 0:00:58]} O-O {[%emt 0:00:06]} 6. Be2 {[%emt 0:00:16]} Nfd7 {[%emt 0:00:04]} 7. O-O {[%emt 0:02:16]} Nc6 {[%emt 0:02:13]} 8. c4 {[%emt 0:02:15]} e5 {[%emt 0:00:32]} 9. Bh2 {[%emt 0:00:16]} f5 {[%emt 0:02:16] A48: 1 d4 Nf6 2 Nf3 g6: Torre, London and Colle Systems} 10. Nc3 {[%emt 0:05:26] LiveBook: 67 Games} e4 {[%emt 0:07:24]} 11. Ne1 {[%emt 0:00:33]} Nf6 {[%emt 0:00:10]} 12. Nc2 {[%emt 0:02:20]} Qe7 $146 {[%emt 0:00:31]} ({Predecessor:} 12... Ne7 13. b4 g5 14. f3 exf3 15. Bxf3 g4 16. hxg4 fxg4 {0-1 (48) Kayumov,S (2505)-Mchedlishvili,M (2601) Doha 2016}) 13. b4 {[%emt 0:01:21]} Kh8 {[%emt 0:08:06]} 14. b5 {[%emt 0:04:10]} Nd8 {[%emt 0:00:06]} 15. Nb4 {[%emt 0:00:39]} c6 {[%emt 0:02:51]} 16. Rc1 {[%emt 0:04:30]} Ne8 {[%emt 0:15:07]} 17. a4 {[%emt 0:14:32]} g5 {[%emt 0:01:53]} 18. Re1 {[%emt 0:01:27]} d5 {[%emt 0:10:00]} 19. Nbxd5 {[%emt 0:06:40]} ({Stronger than} 19. cxd5 Qxb4 20. bxc6 bxc6 $17) 19... cxd5 {[%emt 0:00:33]} 20. Nxd5 {[%emt 0:00:09]} Qd7 {[%emt 0:02:01]} 21. Qb3 {[%emt 0:04:34]} Ne6 {[%emt 0:01:25]} 22. c5 {[%emt 0:02:25]} f4 $1 {[%emt 0:04:48]} 23. Bg4 {[%emt 0:07:14]} (23. b6 $11 {remains equal.}) 23... Qf7 {[%emt 0:03:01]} 24. Nb4 {[%emt 0:01:31]} h5 {[%emt 0:04:08]} 25. Bxe6 {[%emt 0:01:16]} Bxe6 {[%emt 0:00:30]} 26. d5 {[%emt 0:00:08]} Bf5 {[%emt 0:03:00]} 27. Qd1 $19 {[%emt 0:04:55]} (27. exf4 $11 {und Weiss steht sicher.} Bg6 28. fxg5 Qxf2+ 29. Kh1) 27... f3 {[%emt 0:02:21]} 28. gxf3 {[%emt 0:15:56]} Bxh3 {[%emt 0:00:06]} 29. Rc2 {[%emt 0:00:04]} exf3 {[%emt 0:00:42]} 30. Rc4 {[%emt 0:01:43]} Bg2 {[%emt 0:07:22]} 31. e4 {[%emt 0:01:30]} Qd7 {[%emt 0:00:35]} 32. e5 {[%emt 0:01:07]} Qh3 {[%emt 0:01:38]} 33. Re3 {[%emt 0:00:11]} g4 {[%emt 0:04:25]} 34. Nd3 {[%emt 0:01:07]} Bh6 {[%emt 0:01:21]} 35. Ree4 {[%emt 0:01:33]} g3 {[%emt 0:01:46]} 36. fxg3 {[%emt 0:00:33]} f2+ {[%emt 0:02:07]} 37. Nxf2 {[%emt 0:00:39]} Rxf2 {[%emt 0:00:48]} 38. Rh4 {[%emt 0:03:30]} Qf5 {[%emt 0:02:24]} 39. Rcf4 {[%emt 0:00:08]} Rxf4 {[%emt 0:00:08]} 40. gxf4 {[%emt 0:01:12]} Be4 {[%emt 0:03:32]} 41. Qxh5 {[%emt 0:31:26]} Qxh5 {[%emt 0:30:42]} 42. Rxh5 {[%emt 0:00:08]} Kg7 {[%emt 0:00:03]} 43. e6 {[%emt 0:01:57]} Nf6 {[%emt 0:00:46]} 44. Re5 {[%emt 0:00:24]} Bxd5 {[%emt 0:00:29]} 45. Kf2 {[%emt 0:00:57]} Ng4+ 0-1